[Event "*** SCC Grand Prix: Titled Tuesday Blitz"]
[Site "Chess.com"]
[Date "2020.09.08"]
[Round "4"]
[White "DinaBelenkaya"]
[Black "ketster"]
[Result "1/2-1/2"]
[WhiteElo "2287"]
[BlackElo "2448"]
[TimeControl "180+1"]
[EndTime "10:41:28 PDT"]
[Termination "Game drawn - timeout vs insufficient material"]

1. e4 {[%clk 0:03:00.9]} 1... e5 {[%clk 0:02:51.2]} 2. Nf3 {[%clk 0:02:59.4]}
2... Nc6 {[%clk 0:02:50.4]} 3. d4 {[%clk 0:02:59.5]} 3... exd4 {[%clk
0:02:48.3]} 4. Nxd4 {[%clk 0:03:00.4]} 4... Bb4+ {[%clk 0:02:48.1]} 5. c3 {[%clk
0:02:59.1]} 5... Bc5 {[%clk 0:02:48.3]} 6. Nxc6 {[%clk 0:02:50.6]} 6... bxc6
{[%clk 0:02:45.4]} 7. Be2 {[%clk 0:02:45.4]} 7... d6 {[%clk 0:02:13.7]} 8. O-O
{[%clk 0:02:44.8]} 8... h6 {[%clk 0:02:13.3]} 9. Kh1 {[%clk 0:02:39.2]} 9... Nf6
{[%clk 0:02:12.3]} 10. Nd2 {[%clk 0:02:39.7]} 10... O-O {[%clk 0:02:09.4]} 11.
f4 {[%clk 0:02:33.5]} 11... Re8 {[%clk 0:02:07.4]} 12. Bf3 {[%clk 0:02:33.6]}
12... Ba6 {[%clk 0:02:04.1]} 13. c4 {[%clk 0:02:27.7]} 13... Be3 {[%clk
0:01:50.5]} 14. e5 {[%clk 0:02:17.6]} 14... dxe5 {[%clk 0:01:49.6]} 15. Bxc6
{[%clk 0:02:12.1]} 15... exf4 {[%clk 0:01:47.5]} 16. Nf3 {[%clk 0:01:38.1]}
16... Bxc4 {[%clk 0:01:38.5]} 17. Re1 {[%clk 0:01:06.3]} 17... Qxd1 {[%clk
0:01:13.8]} 18. Rxd1 {[%clk 0:01:07.2]} 18... Rad8 {[%clk 0:01:05.2]} 19. Bxe3
{[%clk 0:00:59]} 19... Rxd1+ {[%clk 0:01:03.5]} 20. Rxd1 {[%clk 0:00:59.9]}
20... Rxe3 {[%clk 0:01:02.6]} 21. b3 {[%clk 0:00:57.9]} 21... Be6 {[%clk
0:00:53]} 22. Nd4 {[%clk 0:00:58.1]} 22... Bg4 {[%clk 0:00:51.5]} 23. Rc1 {[%clk
0:00:55.4]} 23... Rd3 {[%clk 0:00:31]} 24. Nb5 {[%clk 0:00:53.2]} 24... Rd2
{[%clk 0:00:31.3]} 25. a4 {[%clk 0:00:48.9]} 25... Rb2 {[%clk 0:00:29.4]} 26.
Nxa7 {[%clk 0:00:45.2]} 26... Rxb3 {[%clk 0:00:28.4]} 27. Nb5 {[%clk 0:00:44.5]}
27... Rb2 {[%clk 0:00:17.9]} 28. Nxc7 {[%clk 0:00:44.4]} 28... Ra2 {[%clk
0:00:16.2]} 29. Na6 {[%clk 0:00:37.2]} 29... Be2 {[%clk 0:00:14.8]} 30. Nb4
{[%clk 0:00:36.7]} 30... Rb2 {[%clk 0:00:14.9]} 31. Nc2 {[%clk 0:00:26.8]} 31...
Ng4 {[%clk 0:00:12.2]} 32. Kg1 {[%clk 0:00:24]} 32... Ra2 {[%clk 0:00:08.6]} 33.
Nd4 {[%clk 0:00:22.2]} 33... Ba6 {[%clk 0:00:08.5]} 34. Bb5 {[%clk 0:00:20.6]}
34... Bb7 {[%clk 0:00:06.5]} 35. Bc6 {[%clk 0:00:19.6]} 35... Ba6 {[%clk
0:00:06.2]} 36. Nf5 {[%clk 0:00:12.3]} 36... g6 {[%clk 0:00:01.1]} 37. Ne7+
{[%clk 0:00:11.7]} 37... Kg7 {[%clk 0:00:01.5]} 38. Nd5 {[%clk 0:00:09]} 38...
Ne3 {[%clk 0:00:02.3]} 39. Nxe3 {[%clk 0:00:08.4]} 39... fxe3 {[%clk 0:00:03.2]}
40. Rc3 {[%clk 0:00:06.9]} 40... e2 {[%clk 0:00:03.6]} 41. Kf2 {[%clk
0:00:06.8]} 41... Ra1 {[%clk 0:00:04.2]} 42. Re3 {[%clk 0:00:07.1]} 42... Rf1+
{[%clk 0:00:04.3]} 43. Kg3 {[%clk 0:00:06.8]} 43... e1=Q+ {[%clk 0:00:05.2]} 44.
Rxe1 {[%clk 0:00:06.4]} 44... Rxe1 {[%clk 0:00:06.1]} 45. a5 {[%clk 0:00:05.4]}
45... Ra1 {[%clk 0:00:07]} 46. Bb7 {[%clk 0:00:05.7]} 46... Rxa5 {[%clk
0:00:06.8]} 47. Bc6 {[%clk 0:00:05.5]} 47... Bb5 {[%clk 0:00:07]} 48. Bd5 {[%clk
0:00:05.6]} 48... Bd7 {[%clk 0:00:07.4]} 49. Bc4 {[%clk 0:00:05.4]} 49... Be6
{[%clk 0:00:07.6]} 50. Bd3 {[%clk 0:00:05.4]} 50... Ra3 {[%clk 0:00:07.9]} 51.
Kh4 {[%clk 0:00:05.8]} 51... Rxd3 {[%clk 0:00:06.3]} 52. h3 {[%clk 0:00:05.8]}
52... g5+ {[%clk 0:00:06]} 53. Kh5 {[%clk 0:00:06.2]} 53... Rc3 {[%clk
0:00:05.6]} 54. h4 {[%clk 0:00:06.6]} 54... Rb3 {[%clk 0:00:04.7]} 55. g3 {[%clk
0:00:04.7]} 55... gxh4 {[%clk 0:00:04.7]} 56. g4 {[%clk 0:00:04.4]} 56... Rb5+
{[%clk 0:00:03.9]} 57. Kxh4 {[%clk 0:00:02.9]} 57... Rg5 {[%clk 0:00:03.5]} 58.
Kh3 {[%clk 0:00:02.5]} 58... Rxg4 {[%clk 0:00:03.9]} 59. Kh2 {[%clk 0:00:03.4]}
59... f5 {[%clk 0:00:03.7]} 60. Kh3 {[%clk 0:00:03.7]} 60... f4 {[%clk
0:00:04.3]} 61. Kh2 {[%clk 0:00:03.9]} 61... f3 {[%clk 0:00:04.8]} 62. Kh3
{[%clk 0:00:04.6]} 62... f2 {[%clk 0:00:00.5]} 63. Kh2 {[%clk 0:00:05.5]}
1/2-1/2

[Event "*** SCC Grand Prix: Titled Tuesday Blitz"]
[Site "Chess.com"]
[Date "2020.09.08"]
[Round "4"]
[White "Chessbard1972"]
[Black "Bulatova_Kamaliya"]
[Result "1/2-1/2"]
[WhiteElo "2374"]
[BlackElo "2138"]
[TimeControl "180+1"]
[EndTime "10:41:28 PDT"]
[Termination "Game drawn by repetition"]

1. d4 {[%clk 0:03:00.9]} 1... g6 {[%clk 0:02:59.1]} 2. Nf3 {[%clk 0:03:00.7]}
2... Bg7 {[%clk 0:03:00]} 3. c4 {[%clk 0:03:00.7]} 3... Nf6 {[%clk 0:02:59.5]}
4. g3 {[%clk 0:03:01.1]} 4... O-O {[%clk 0:02:59.5]} 5. Bg2 {[%clk 0:03:01.2]}
5... d6 {[%clk 0:03:00.4]} 6. O-O {[%clk 0:03:01.2]} 6... Nbd7 {[%clk
0:03:01.3]} 7. Nc3 {[%clk 0:03:01.3]} 7... e5 {[%clk 0:03:01.7]} 8. h3 {[%clk
0:02:59.1]} 8... a6 {[%clk 0:03:00.9]} 9. Qc2 {[%clk 0:02:56.1]} 9... Re8 {[%clk
0:02:53.9]} 10. Rd1 {[%clk 0:02:55.6]} 10... exd4 {[%clk 0:02:52.7]} 11. Nxd4
{[%clk 0:02:54.7]} 11... Ne5 {[%clk 0:02:49.6]} 12. b3 {[%clk 0:02:54]} 12... c5
{[%clk 0:02:44.6]} 13. Nf3 {[%clk 0:02:50.8]} 13... Bf5 {[%clk 0:02:43.5]} 14.
e4 {[%clk 0:02:44.2]} 14... Nxe4 {[%clk 0:02:22.4]} 15. Nxe4 {[%clk 0:02:41.4]}
15... Bxe4 {[%clk 0:02:22.4]} 16. Qxe4 {[%clk 0:02:37.2]} 16... Nxf3+ {[%clk
0:02:22.2]} 17. Qxf3 {[%clk 0:02:36.9]} 17... Bxa1 {[%clk 0:02:21.8]} 18. Bf4
{[%clk 0:02:27.2]} 18... Be5 {[%clk 0:02:18.3]} 19. Bh6 {[%clk 0:02:21.4]} 19...
b5 {[%clk 0:02:13.2]} 20. Qxa8 {[%clk 0:02:16.7]} 20... Qxa8 {[%clk 0:02:12.5]}
21. Bxa8 {[%clk 0:02:16.3]} 21... Rxa8 {[%clk 0:02:12.9]} 22. h4 {[%clk
0:02:12.4]} 22... f5 {[%clk 0:02:05.3]} 23. Be3 {[%clk 0:02:10.4]} 23... bxc4
{[%clk 0:02:04.3]} 24. bxc4 {[%clk 0:02:09.9]} 24... Rb8 {[%clk 0:01:55.5]} 25.
f4 {[%clk 0:02:06.5]} 25... Bd4 {[%clk 0:01:55.2]} 26. Bxd4 {[%clk 0:02:05.6]}
26... cxd4 {[%clk 0:01:55.4]} 27. Rxd4 {[%clk 0:02:05.6]} 27... Rb6 {[%clk
0:01:53.8]} 28. Rd5 {[%clk 0:02:00.5]} 28... Kf7 {[%clk 0:01:47.2]} 29. Kf2
{[%clk 0:01:56.5]} 29... Ke6 {[%clk 0:01:43.5]} 30. Ke3 {[%clk 0:01:56.4]} 30...
Rb4 {[%clk 0:01:38.1]} 31. Ra5 {[%clk 0:01:53.3]} 31... Rxc4 {[%clk 0:01:36.5]}
32. Kd3 {[%clk 0:01:51.3]} 32... Rc6 {[%clk 0:01:33.7]} 33. Kd4 {[%clk
0:01:50.5]} 33... Rb6 {[%clk 0:01:30.1]} 34. Ra4 {[%clk 0:01:49.1]} 34... h6
{[%clk 0:01:03.3]} 35. Rc4 {[%clk 0:01:47.3]} 35... Rb2 {[%clk 0:00:55.5]} 36.
Ra4 {[%clk 0:01:46]} 36... Rg2 {[%clk 0:00:47.1]} 37. Ra3 {[%clk 0:01:42.3]}
37... a5 {[%clk 0:00:37.2]} 38. Kc4 {[%clk 0:01:39.5]} 38... Re2 {[%clk
0:00:29.8]} 39. Kb5 {[%clk 0:01:37.7]} 39... Kf6 {[%clk 0:00:25.8]} 40. Kxa5
{[%clk 0:01:36.3]} 40... g5 {[%clk 0:00:25.8]} 41. hxg5+ {[%clk 0:01:35.4]}
41... hxg5 {[%clk 0:00:25.7]} 42. Kb5 {[%clk 0:01:31.1]} 42... Rc2 {[%clk
0:00:24.9]} 43. Rd3 {[%clk 0:01:28.2]} 43... gxf4 {[%clk 0:00:20.6]} 44. gxf4
{[%clk 0:01:24.8]} 44... Ke6 {[%clk 0:00:20]} 45. a4 {[%clk 0:01:22.2]} 45...
Rb2+ {[%clk 0:00:18.7]} 46. Kc6 {[%clk 0:01:14.2]} 46... Rc2+ {[%clk 0:00:17.8]}
47. Kb6 {[%clk 0:01:10.3]} 47... Rb2+ {[%clk 0:00:17.8]} 48. Ka6 {[%clk
0:01:08.5]} 48... Rb4 {[%clk 0:00:17.9]} 49. a5 {[%clk 0:01:08.3]} 49... Rxf4
{[%clk 0:00:18]} 50. Kb5 {[%clk 0:01:06.4]} 50... Rf1 {[%clk 0:00:18.2]} 51. Ra3
{[%clk 0:01:05.1]} 51... Rb1+ {[%clk 0:00:18.3]} 52. Kc6 {[%clk 0:01:03.2]}
52... Rc1+ {[%clk 0:00:18.5]} 53. Kb7 {[%clk 0:01:02.3]} 53... Rb1+ {[%clk
0:00:18.8]} 54. Kc6 {[%clk 0:01:00.9]} 54... Rc1+ {[%clk 0:00:18.4]} 55. Kb5
{[%clk 0:01:01]} 55... Rb1+ {[%clk 0:00:18.6]} 56. Kc4 {[%clk 0:01:00.5]} 56...
d5+ {[%clk 0:00:18.6]} 57. Kc5 {[%clk 0:00:58.8]} 57... Rc1+ {[%clk 0:00:18.3]}
58. Kd4 {[%clk 0:00:57.8]} 58... Rc4+ {[%clk 0:00:15.1]} 59. Kd3 {[%clk
0:00:57.8]} 59... Rc8 {[%clk 0:00:14.6]} 60. a6 {[%clk 0:00:56.2]} 60... Ra8
{[%clk 0:00:14.7]} 61. a7 {[%clk 0:00:56.4]} 61... Ke5 {[%clk 0:00:13.8]} 62.
Kc3 {[%clk 0:00:48.2]} 62... f4 {[%clk 0:00:12.7]} 63. Kb4 {[%clk 0:00:46.2]}
63... f3 {[%clk 0:00:10.5]} 64. Rxf3 {[%clk 0:00:32.1]} 64... Rxa7 {[%clk
0:00:10.4]} 65. Rf8 {[%clk 0:00:31.4]} 65... Rb7+ {[%clk 0:00:07.5]} 66. Kc3
{[%clk 0:00:30.7]} 66... d4+ {[%clk 0:00:07.2]} 67. Kc4 {[%clk 0:00:28.4]} 67...
Rc7+ {[%clk 0:00:07.1]} 68. Kd3 {[%clk 0:00:28.2]} 68... Rc3+ {[%clk 0:00:07.2]}
69. Kd2 {[%clk 0:00:28.1]} 69... Rh3 {[%clk 0:00:06.2]} 70. Re8+ {[%clk
0:00:27]} 70... Kd5 {[%clk 0:00:04.8]} 71. Rd8+ {[%clk 0:00:26.5]} 71... Kc5
{[%clk 0:00:04.8]} 72. Rc8+ {[%clk 0:00:26.1]} 72... Kd5 {[%clk 0:00:05.2]} 73.
Ra8 {[%clk 0:00:24.2]} 73... Ke4 {[%clk 0:00:04.9]} 74. Re8+ {[%clk 0:00:23.1]}
74... Kd5 {[%clk 0:00:05.2]} 75. Re7 {[%clk 0:00:22.5]} 75... Kd6 {[%clk
0:00:05]} 76. Re8 {[%clk 0:00:20.8]} 76... Kd5 {[%clk 0:00:05.3]} 1/2-1/2

[Event "*** SCC Grand Prix: Titled Tuesday Blitz"]
[Site "Chess.com"]
[Date "2020.09.08"]
[Round "4"]
[White "Andrii_Prydun"]
[Black "Deepweb2020"]
[Result "1-0"]
[WhiteElo "2411"]
[BlackElo "2220"]
[TimeControl "180+1"]
[EndTime "10:41:38 PDT"]
[Termination "Andrii_Prydun won on time"]

1. d4 {[%clk 0:03:00.9]} 1... Nf6 {[%clk 0:02:59.4]} 2. Nc3 {[%clk 0:03:01.2]}
2... d5 {[%clk 0:02:57.6]} 3. Bf4 {[%clk 0:03:01.8]} 3... e6 {[%clk 0:02:56.4]}
4. Nb5 {[%clk 0:03:02]} 4... Na6 {[%clk 0:02:55.9]} 5. e3 {[%clk 0:03:02.6]}
5... c6 {[%clk 0:02:54.5]} 6. Nc3 {[%clk 0:03:02.8]} 6... Bd6 {[%clk 0:02:54.8]}
7. Nf3 {[%clk 0:03:01]} 7... Qc7 {[%clk 0:02:50.4]} 8. Bxd6 {[%clk 0:02:52.9]}
8... Qxd6 {[%clk 0:02:48.3]} 9. Bxa6 {[%clk 0:02:53.4]} 9... bxa6 {[%clk
0:02:48.1]} 10. Na4 {[%clk 0:02:50.3]} 10... Nd7 {[%clk 0:02:46.3]} 11. c4
{[%clk 0:02:00.6]} 11... a5 {[%clk 0:02:08.6]} 12. Nd2 {[%clk 0:01:00.5]} 12...
Ba6 {[%clk 0:01:51]} 13. c5 {[%clk 0:00:57.9]} 13... Qc7 {[%clk 0:01:47.2]} 14.
Nb3 {[%clk 0:00:57.7]} 14... O-O-O {[%clk 0:01:29.5]} 15. Qd2 {[%clk 0:00:54.7]}
15... Kb8 {[%clk 0:01:16.2]} 16. Qxa5 {[%clk 0:00:53.2]} 16... Qb7 {[%clk
0:01:13.6]} 17. O-O-O {[%clk 0:00:43.7]} 17... Ka8 {[%clk 0:01:09.7]} 18. Rhe1
{[%clk 0:00:39.5]} 18... Bc4 {[%clk 0:01:06.8]} 19. Nd2 {[%clk 0:00:37.5]} 19...
Bb5 {[%clk 0:01:03.2]} 20. Nc3 {[%clk 0:00:36.3]} 20... Ba6 {[%clk 0:00:57]} 21.
a4 {[%clk 0:00:27.8]} 21... Rb8 {[%clk 0:00:54.5]} 22. b4 {[%clk 0:00:27.3]}
22... Qxb4 {[%clk 0:00:49.2]} 23. Qxb4 {[%clk 0:00:27.1]} 23... Rxb4 {[%clk
0:00:50.1]} 24. Kc2 {[%clk 0:00:25.3]} 24... Rhb8 {[%clk 0:00:47.5]} 25. Rb1
{[%clk 0:00:25.9]} 25... f6 {[%clk 0:00:39.5]} 26. Rxb4 {[%clk 0:00:25.7]} 26...
Rxb4 {[%clk 0:00:40.4]} 27. Rb1 {[%clk 0:00:26.2]} 27... Rxb1 {[%clk 0:00:40.4]}
28. Kxb1 {[%clk 0:00:26.1]} 28... Kb7 {[%clk 0:00:39.9]} 29. Kc2 {[%clk
0:00:24.9]} 29... Kc7 {[%clk 0:00:39.3]} 30. Nf3 {[%clk 0:00:22]} 30... e5
{[%clk 0:00:37.2]} 31. g3 {[%clk 0:00:18.9]} 31... Kd8 {[%clk 0:00:32.7]} 32.
Kb3 {[%clk 0:00:17.5]} 32... Bd3 {[%clk 0:00:25.8]} 33. Kb2 {[%clk 0:00:12.8]}
33... Kc7 {[%clk 0:00:24]} 34. Nb1 {[%clk 0:00:11.2]} 34... g6 {[%clk 0:00:17]}
35. Nbd2 {[%clk 0:00:10.7]} 35... Ba6 {[%clk 0:00:15.5]} 36. Kc3 {[%clk
0:00:10.4]} 36... Kd8 {[%clk 0:00:15]} 37. Ne1 {[%clk 0:00:06.4]} 37... Kc7
{[%clk 0:00:12.6]} 38. Nc2 {[%clk 0:00:06.3]} 38... Bc8 {[%clk 0:00:11.5]} 39.
e4 {[%clk 0:00:05]} 39... Nf8 {[%clk 0:00:07.3]} 40. Ne3 {[%clk 0:00:03.6]}
40... Be6 {[%clk 0:00:06.5]} 41. Nf3 {[%clk 0:00:03.4]} 41... Nd7 {[%clk
0:00:05.1]} 42. dxe5 {[%clk 0:00:03.3]} 42... dxe4 {[%clk 0:00:04.1]} 43. Nd4
{[%clk 0:00:03.7]} 43... Bd5 {[%clk 0:00:01.6]} 44. exf6 {[%clk 0:00:04]} 44...
Nxf6 {[%clk 0:00:01.6]} 45. Ne2 {[%clk 0:00:04.1]} 45... Kd7 {[%clk 0:00:01.7]}
46. Nf4 {[%clk 0:00:04.5]} 46... Be6 {[%clk 0:00:01.4]} 47. Kd4 {[%clk
0:00:04.9]} 47... Bf7 {[%clk 0:00:01.5]} 48. Ke5 {[%clk 0:00:05.4]} 48... Bb3
{[%clk 0:00:02.3]} 49. Kxf6 {[%clk 0:00:05.7]} 49... Bxa4 {[%clk 0:00:03]} 50.
Ke5 {[%clk 0:00:06.1]} 50... Bb3 {[%clk 0:00:03.7]} 51. Kd4 {[%clk 0:00:06.2]}
51... a5 {[%clk 0:00:04.6]} 52. Kc3 {[%clk 0:00:06.5]} 52... a4 {[%clk
0:00:05.5]} 53. Ne2 {[%clk 0:00:06.7]} 53... Ke7 {[%clk 0:00:05.6]} 54. Nd4
{[%clk 0:00:07]} 54... Bf7 {[%clk 0:00:02.2]} 55. Kb4 {[%clk 0:00:07.4]} 55...
Kf6 {[%clk 0:00:02]} 56. h4 {[%clk 0:00:08]} 56... Be8 {[%clk 0:00:02.4]} 57.
Ndc2 {[%clk 0:00:07.4]} 57... Ke5 {[%clk 0:00:02.6]} 58. Kxa4 {[%clk 0:00:06.9]}
58... h6 {[%clk 0:00:01.3]} 59. Kb4 {[%clk 0:00:07.3]} 59... g5 {[%clk
0:00:01.5]} 60. hxg5 {[%clk 0:00:07.7]} 60... hxg5 {[%clk 0:00:02.4]} 61. Na3
{[%clk 0:00:07.5]} 61... Bd7 {[%clk 0:00:02]} 62. Nac2 {[%clk 0:00:06.6]} 62...
Be8 {[%clk 0:00:01.7]} 63. Kc3 {[%clk 0:00:06.9]} 63... Bd7 {[%clk 0:00:01.8]}
64. Nb4 {[%clk 0:00:07.1]} 64... Be8 {[%clk 0:00:02.2]} 65. Nbc2 {[%clk
0:00:06.9]} 65... Bd7 {[%clk 0:00:02.4]} 66. Nd4 {[%clk 0:00:07.8]} 66... Be8
{[%clk 0:00:02.2]} 67. Nec2 {[%clk 0:00:07.3]} 67... Bd7 {[%clk 0:00:02.3]} 68.
Nb4 {[%clk 0:00:07.5]} 1-0

[Event "*** SCC Grand Prix: Titled Tuesday Blitz"]
[Site "Chess.com"]
[Date "2020.09.08"]
[Round "4"]
[White "elegant285"]
[Black "Iskusnyh"]
[Result "0-1"]
[WhiteElo "2346"]
[BlackElo "2589"]
[TimeControl "180+1"]
[EndTime "10:41:39 PDT"]
[Termination "Iskusnyh won by resignation"]

1. d4 {[%clk 0:03:00.9]} 1... d5 {[%clk 0:02:59.3]} 2. c4 {[%clk 0:03:00.3]}
2... c6 {[%clk 0:02:59.5]} 3. Nf3 {[%clk 0:02:59.9]} 3... Nf6 {[%clk 0:02:59.8]}
4. Nc3 {[%clk 0:03:00]} 4... a6 {[%clk 0:02:59.6]} 5. cxd5 {[%clk 0:02:59.3]}
5... cxd5 {[%clk 0:02:58.8]} 6. Bf4 {[%clk 0:02:58.4]} 6... Nc6 {[%clk
0:02:58.3]} 7. e3 {[%clk 0:02:58.6]} 7... Bg4 {[%clk 0:02:57.9]} 8. h3 {[%clk
0:02:57.6]} 8... Bxf3 {[%clk 0:02:53.6]} 9. Qxf3 {[%clk 0:02:58.5]} 9... e6
{[%clk 0:02:53.9]} 10. Bd3 {[%clk 0:02:55.8]} 10... Bd6 {[%clk 0:02:53.4]} 11.
O-O {[%clk 0:02:52.9]} 11... O-O {[%clk 0:02:51.4]} 12. Rac1 {[%clk 0:02:44.6]}
12... Rc8 {[%clk 0:02:22.2]} 13. Bb1 {[%clk 0:02:29.7]} 13... Bxf4 {[%clk
0:02:11.8]} 14. Qxf4 {[%clk 0:02:29.5]} 14... Qc7 {[%clk 0:02:10.6]} 15. Qh4
{[%clk 0:02:20]} 15... Qe7 {[%clk 0:01:57.5]} 16. Na4 {[%clk 0:02:03.2]} 16...
g6 {[%clk 0:01:42.1]} 17. Nc5 {[%clk 0:01:58]} 17... Kg7 {[%clk 0:01:36.4]} 18.
a3 {[%clk 0:01:50.4]} 18... Nb8 {[%clk 0:01:25.7]} 19. Bd3 {[%clk 0:01:35.9]}
19... a5 {[%clk 0:01:19.1]} 20. Bb5 {[%clk 0:01:28]} 20... b6 {[%clk 0:00:55.6]}
21. Nd3 {[%clk 0:01:27.5]} 21... Qd6 {[%clk 0:00:46.2]} 22. Ne5 {[%clk
0:01:17.5]} 22... Nfd7 {[%clk 0:00:45]} 23. Nd3 {[%clk 0:01:07.2]} 23... Nf6
{[%clk 0:00:33.7]} 24. Rfd1 {[%clk 0:00:50.5]} 24... Rfd8 {[%clk 0:00:29.8]} 25.
Ne5 {[%clk 0:00:46.2]} 25... Nbd7 {[%clk 0:00:24.1]} 26. Nxd7 {[%clk 0:00:34.3]}
26... Nxd7 {[%clk 0:00:22.9]} 27. Ba6 {[%clk 0:00:34.6]} 27... Rxc1 {[%clk
0:00:21.1]} 28. Rxc1 {[%clk 0:00:35.5]} 28... Nf6 {[%clk 0:00:20.5]} 29. Bb5
{[%clk 0:00:32.1]} 29... Qf8 {[%clk 0:00:19.3]} 30. Rc7 {[%clk 0:00:28.7]} 30...
Rc8 {[%clk 0:00:19.3]} 31. Qf4 {[%clk 0:00:28.5]} 31... Rxc7 {[%clk 0:00:18.9]}
32. Qxc7 {[%clk 0:00:28.6]} 32... Qa8 {[%clk 0:00:17.8]} 33. Qxb6 {[%clk
0:00:27.1]} 33... Qc8 {[%clk 0:00:17.7]} 34. Qc6 {[%clk 0:00:27.2]} 34... Qb8
{[%clk 0:00:17.6]} 35. b4 {[%clk 0:00:26]} 35... axb4 {[%clk 0:00:16.8]} 36.
axb4 {[%clk 0:00:26.9]} 36... Qa7 {[%clk 0:00:17]} 37. Qc3 {[%clk 0:00:25.4]}
37... Qa2 {[%clk 0:00:16.3]} 38. Bf1 {[%clk 0:00:24.9]} 38... Ne4 {[%clk
0:00:15.5]} 39. Qe1 {[%clk 0:00:24.9]} 39... Qb2 {[%clk 0:00:15.4]} 40. b5
{[%clk 0:00:24.9]} 40... h5 {[%clk 0:00:13.3]} 41. Qe2 {[%clk 0:00:23.9]} 41...
Qb1 {[%clk 0:00:12.6]} 42. Qd3 {[%clk 0:00:23.3]} 42... Qb4 {[%clk 0:00:11.2]}
43. f3 {[%clk 0:00:20.9]} 43... Ng3 {[%clk 0:00:11]} 44. Kf2 {[%clk 0:00:19.8]}
44... h4 {[%clk 0:00:10.9]} 45. Qc2 {[%clk 0:00:16.7]} 45... Nh1+ {[%clk
0:00:09.6]} 46. Kg1 {[%clk 0:00:15.9]} 46... Ng3 {[%clk 0:00:10.1]} 47. Kf2
{[%clk 0:00:15.8]} 47... Nf5 {[%clk 0:00:09.7]} 48. Qd3 {[%clk 0:00:15]} 48...
Qb2+ {[%clk 0:00:09.2]} 49. Qe2 {[%clk 0:00:14.6]} 49... Qc3 {[%clk 0:00:09]}
50. Qd3 {[%clk 0:00:13.8]} 50... Qb4 {[%clk 0:00:08.8]} 51. Qe2 {[%clk
0:00:13.1]} 51... Ng3 {[%clk 0:00:08]} 52. Qd3 {[%clk 0:00:13.4]} 52... Qb2+
{[%clk 0:00:07.7]} 53. Kg1 {[%clk 0:00:13.6]} 53... Qc1 {[%clk 0:00:07.7]} 54.
b6 {[%clk 0:00:11.7]} 54... Nxf1 {[%clk 0:00:07.1]} 55. Qxf1 {[%clk 0:00:11.6]}
55... Qxe3+ {[%clk 0:00:07.1]} 56. Qf2 {[%clk 0:00:11.4]} 56... Qc1+ {[%clk
0:00:06.1]} 57. Kh2 {[%clk 0:00:09.8]} 57... Qb1 {[%clk 0:00:06]} 58. Qe3 {[%clk
0:00:09.3]} 58... Qxb6 {[%clk 0:00:05.4]} 59. Qe5+ {[%clk 0:00:09.6]} 59... Kg8
{[%clk 0:00:02.8]} 60. Qf6 {[%clk 0:00:08.8]} 60... Qc7+ {[%clk 0:00:02.5]} 61.
Kg1 {[%clk 0:00:08.1]} 61... Qc1+ {[%clk 0:00:02.4]} 62. Kh2 {[%clk 0:00:08.4]}
62... g5 {[%clk 0:00:02.9]} 63. Qd8+ {[%clk 0:00:07.6]} 63... Kg7 {[%clk
0:00:01.7]} 64. Qd6 {[%clk 0:00:08.1]} 64... Qf4+ {[%clk 0:00:01.9]} 65. Qxf4
{[%clk 0:00:08]} 65... gxf4 {[%clk 0:00:02.8]} 66. Kg1 {[%clk 0:00:08.5]} 66...
Kf6 {[%clk 0:00:03.2]} 67. Kf2 {[%clk 0:00:09.4]} 67... Ke7 {[%clk 0:00:03.9]}
68. Ke2 {[%clk 0:00:10.3]} 68... Kd6 {[%clk 0:00:04.3]} 69. Kd3 {[%clk
0:00:11.2]} 69... Kc6 {[%clk 0:00:04.7]} 70. Kc3 {[%clk 0:00:11.4]} 70... Kb5
{[%clk 0:00:04.8]} 71. Kb3 {[%clk 0:00:11.8]} 71... f6 {[%clk 0:00:05]} 72. Kc3
{[%clk 0:00:11.8]} 72... Ka4 {[%clk 0:00:05.1]} 73. Kd3 {[%clk 0:00:11.7]} 73...
Kb3 {[%clk 0:00:05.1]} 0-1